Cogmind - Beta 12 @@@ ROGUE MODE // 2023.12.17 @ 10:05:37 Player: puppuppit Result: Destroyed by H-77 Assassin with High-powered Shotgun Performance ------------- Evolutions (7) 3500 Regions Visited (23) 4600 Robots Destroyed (72) 360 Value Destroyed (3424) 3424 Prototype IDs (48) 960 Alien Tech Used (0) 0 Bonus (3303) 3303 TOTAL SCORE: 16147 Bonus ------- Triggered Max Security 1000 High Alert Combat Kills 90 Follower Combat Kills 458 Entered Garrisons 200 Used RIF Installer 500 Aligned with FarCom 300 Met Data Miner 300 Scanned by Researcher 500 Friendly Fire -45 Cogmind --------- Core Integrity 0/1300 Matter 77/300 Energy 100/100 System Corruption 8% Temperature Cool (0) Movement Core (50) Location -3/Testing Parts ------- > --- POWER (2) -------- (None) > --- PROPULSION (4) --- (None) > --- UTILITY (12) ----- Terrain Scan Processor Advanced Terrain Scan Processor Core Analyzer Hacking Suite Improved Hacking Suite Advanced Hacking Suite > --- WEAPON (3) ------- (None) > --- INVENTORY (5) ---- Micro Antimatter Reactor Improved Reaction Control System Experimental Hacking Suite Relay Coupler [Specialist] Hypervelocity Multirail Peak State ------------ > --- POWER ------------ (None) > --- PROPULSION ------- Field Propulsion Array Impulse Thruster Array > --- UTILITY ---------- Advanced Cryofiber Web Machine Analyzer Terrain Scan Processor Advanced Terrain Scan Processor Experimental Terrain Scan Processor Advanced Targeting Computer Core Analyzer Advanced Transmission Jammer Hacking Suite Improved Hacking Suite Advanced Hacking Suite > --- WEAPON ----------- Hypervelocity Gauss Cannon Hypervelocity Gauss Cannon > --- INVENTORY -------- Xenon Bombardment Thruster Xenon Bombardment Thruster Improved Force Field Heavy Gauss Cannon [Rating: 96] Favorites ----------- Power Light Nuclear Core Engine Angular Momentum Engine Power Core Light Nuclear Core Reactor Particle Reactor Propulsion Gravmag System Leg Flexi-carbon Leg Wheel Wheel Hover Unit Gravmag System Flight Unit Flight Unit Utility Hacking Suite Device Weight Redist. System Storage Compact Battery Processor Advanced Targeting Computer Hackware Hacking Suite Protection Weapon Shielding Weapon Advanced Plasma Cannon Energy Gun Cooled Plasma Rifle Energy Cannon Advanced Plasma Cannon Ballistic Gun Light Assault Rifle Ballistic Cannon Hypervelocity Gauss Cannon Launcher Rocket Launcher Special Weapon Improved Remote Datajack Build | -11 -10 -10 -10 -9 -8 -8 -8 -7 -6 -6 -6 -6 -5 -5 -5 -5 -4 -4 -4 -4 -3 -3 -3 ------- Run | Jun Mat Min Exi Min Mat Gar Mat Fac Fac Low Low Dat Pro Fac Upp Upp Fac Upp Upp War Pro Res Tes Slots Evolved 14 | . . . . . 4 . . 2 2 . . . . 2 . . 2 . . . . 2 . Power 1 | . . . . . . . . . . . . . . 1 . . . . . . . . . Propulsion 2 | . . . . . 2 . . . . . . . . . . . . . . . . . . Utility 10 | . . . . . 2 . . 2 2 . . . . . . . 2 . . . . 2 . Weapon 1 | . . . . . . . . . . . . . . 1 . . . . . . . . . Parts Attached 236 | 5 2 . 2 . 6 41 28 18 10 1 31 . 8 20 12 . 18 2 3 1 2 19 7 Power 25 | 1 . . . . 1 6 1 2 1 1 6 . . . 2 . 1 . 1 . 1 . 1 Engine 9 | 1 . . . . . 4 . . . . 2 . . . 1 . . . . . . . 1 Core 15 | . . . . . 1 2 1 2 1 1 4 . . . 1 . 1 . 1 . . . . Reactor 1 | . . . . . . . . . . . . . . . . . . . . . 1 . . Propulsion 58 | 2 . . . . 1 12 11 4 1 . 5 . 1 3 3 . 7 . . . 1 5 2 Treads . | . . . . . . . . . . . . . . . . . . . . . . . . Leg 4 | . . . . . . 2 . . . . 2 . . . . . . . . . . . . Wheel 2 | 2 . . . . . . . . . . . . . . . . . . . . . . . Hover 21 | . . . . . 1 5 5 4 1 . . . . . 1 . 4 . . . . . . Flight 31 | . . . . . . 5 6 . . . 3 . 1 3 2 . 3 . . . 1 5 2 Utility 78 | . 2 . . . 3 7 11 10 4 . 8 . 2 6 6 . 5 2 2 1 . 7 2 Device 42 | . 1 . . . . 2 8 4 4 . 5 . 1 4 1 . 3 2 2 1 . 2 2 Storage 2 | . . . . . . . . . . . 1 . . . . . 1 . . . . . . Processor 11 | . 1 . . . 1 . . 1 . . . . 1 . 4 . . . . . . 3 . Hackware 16 | . . . . . . 5 3 2 . . 1 . . 2 . . 1 . . . . 2 . Protection 7 | . . . . . 2 . . 3 . . 1 . . . 1 . . . . . . . . Artifact . | . . . . . . . . . . . . . . . . . . . . . . . . Weapon 75 | 2 . . 2 . 1 16 5 2 4 . 12 . 5 11 1 . 5 . . . . 7 2 Energy Gun 14 | . . . . . . 2 2 1 2 . 4 . . 2 . . 1 . . . . . . Energy Cannon 18 | . . . 2 . . 2 2 1 2 . 3 . 3 . . . 2 . . . . . 1 Ballistic Gun 12 | 2 . . . . . 6 . . . . 2 . 1 . . . . . . . . . 1 Ballistic Cannon 10 | . . . . . . . . . . . . . . 2 . . 1 . . . . 7 . Launcher 3 | . . . . . 1 . . . . . . . . 2 . . . . . . . . . Special Weapon 18 | . . . . . . 6 1 . . . 3 . 1 5 1 . 1 . . . . . . Impact Weapon . | . . . . . . . . . . . . . . . . . . . . . . . . Slashing Weapon . | . . . . . . . . . . . . . . . . . . . . . . . . Piercing Weapon . | . . . . . . . . . . . . . . . . . . . . . . . . Special Melee Weapon . | . . . . . . . . . . . . . . . . . . . . . . . . Unidentified Prototypes 10 | . . . . . . . 2 . 1 . 1 . . 1 . . 2 . . . . 2 1 Corrupted Parts 3 | . . . . . . 3 . . . . . . . . . . . . . . . . . System Corruption 4 | . . . . . . 4 . . . . . . . . . . . . . . . . . Parts Lost 84 | . . . . . . 21 2 5 . . 8 . 6 12 . . 3 . 1 3 8 7 8 Power 10 | . . . . . . 4 . . . . 1 . . 1 . . . . . 1 2 . 1 Propulsion 34 | . . . . . . 10 1 3 . . 2 . 4 5 . . 1 . . . 3 2 3 Utility 24 | . . . . . . 2 . 2 . . 4 . 1 3 . . 1 . 1 2 1 3 4 Weapon 16 | . . . . . . 5 1 . . . 1 . 1 3 . . 1 . . . 2 2 . Highest Loss Streak 12 | . . . . . . 5 1 3 . . 5 . 3 12 . . 1 . 1 3 8 5 8 To Critical Strikes 1 | . . . . . . . . . . . . . . . . . . . . . 1 . . Average Slot Usage (%) 78 | . 81 100 100 100 82 78 93 91 69 84 75 80 58 59 62 70 89 88 87 85 62 49 52 Engine 2 | . 14 14 14 14 1 3 . . . . 1 . . . 4 5 5 5 1 . . . 1 Core 4 | . . . . . 7 5 9 6 5 6 4 6 1 . . . 1 5 8 8 4 . . Wheel 2 | . 28 28 28 28 18 1 . . . . . . . . . . . . . . . . . Hover 11 | . . . . . 5 14 29 25 8 13 1 . . . 4 5 13 15 15 15 13 . . Flight 4 | . . . . . . 5 5 . . . 12 20 6 6 8 11 6 . . . . 9 5 Device 8 | . 3 14 14 14 9 6 8 9 20 24 11 6 6 10 1 . 6 9 10 13 . 4 7 Processor 13 | . 7 14 14 14 15 16 . 7 6 6 6 6 11 7 19 29 25 21 19 15 15 20 20 Hackware 15 | . . . . . . 7 27 21 20 20 21 26 26 25 17 17 15 21 21 19 14 10 14 Protection 1 | . . . . . 7 2 . 3 . . . . . . 3 . . . . . . . . Energy Gun 2 | . . . . . . 2 . 6 3 6 2 6 1 . . . 4 5 5 5 3 . . Energy Cannon 4 | . . . . 28 17 3 7 6 2 6 . . . . . . 1 5 5 5 3 . 1 Ballistic Gun 1 | . 28 28 28 . . 2 . . . . 2 . . . . . . . . . . . . Special Weapon 1 | . . . . . . 2 4 . . . . . . 4 . . 2 . . . . . . Naked Turns . | . . . . . . . . . . . . . . . . . . . . . . . . Heaviest Build 45 | 5 5 5 11 11 22 14 20 35 23 26 26 12 12 24 14 13 36 35 45 39 37 22 19 Greatest Support 48 | 20 26 26 26 26 26 35 41 39 28 28 35 12 12 26 14 14 48 37 37 37 37 31 28 Greatest Overweight (x) 3 | . . . . . . 1 1 1 . . 2 . . 2 . . 1 . 1 1 . 3 . Average Overweight (x) . | . . . . . . . . . . . . . . . . . . . . . . . . Largest Inventory Capacity 5 | 5 5 5 5 5 5 5 5 5 5 5 5 5 5 5 5 5 5 5 5 5 5 5 5 Average Capacity 5 | 5 5 5 5 5 5 5 5 5 5 5 5 5 5 5 5 5 5 5 5 5 5 5 5 Most Carried 5 | 1 3 3 4 3 5 5 5 5 5 5 5 5 5 5 5 5 5 5 5 5 5 5 5 Average Carried 4 | . 1 3 3 2 4 3 4 4 4 5 4 5 4 4 4 5 3 4 4 5 4 4 4 Final Capacity 5 | 5 5 5 5 5 5 5 5 5 5 5 5 5 5 5 5 5 5 5 5 5 5 5 5 Final Carried 5 | 1 3 3 2 3 5 5 5 5 5 5 5 5 5 5 5 5 4 4 5 5 4 5 5 Class Distribution -------------------- 64% | Hacker-Mutant 18% | Mutant 10% | Scavenger-Mutant 3% | Bothacker-Mutant Dominant Class ---------------- Mutant | -10/Materials Mutant | -10/Mines Mutant | -10/Exiles Mutant | -9/Mines Mutant | -8/Materials Scavenger-Mutant | -8/Garrison Hacker-Mutant | -8/Materials Hacker-Mutant | -7/Factory Hacker-Mutant | -6/Factory Hacker-Mutant | -6/Lower Caves Hacker-Mutant | -6/Lower Caves Hacker-Mutant | -6/Data Miner Hacker-Mutant | -5/Proximity Caves Hacker-Mutant | -5/Factory Derelict-Mutant | -5/Upper Caves Hacker-Mutant | -5/Upper Caves Hacker-Mutant | -4/Factory Hacker-Mutant | -4/Upper Caves Hacker-Mutant | -4/Upper Caves Hacker-Mutant | -4/Warlord Hacker-Mutant | -3/Proximity Caves Hacker-Mutant | -3/Research Hacker-Mutant | -3/Testing Resources | -11 -10 -10 -10 -9 -8 -8 -8 -7 -6 -6 -6 -6 -5 -5 -5 -5 -4 -4 -4 -4 -3 -3 -3 ----------- Run | Jun Mat Min Exi Min Mat Gar Mat Fac Fac Low Low Dat Pro Fac Upp Upp Fac Upp Upp War Pro Res Tes Matter Collected 2960 | 237 27 . . 48 50 655 399 155 32 68 406 . 55 218 159 . 125 134 34 . 10 38 110 Remotely . | . . . . . . . . . . . . . . . . . . . . . . . . Salvage Created 3371 | . 84 . . 137 166 550 550 338 . 194 487 . . 106 174 . 317 . 97 . . 145 26 Parts 168 | . 2 . . 9 17 24 28 11 . 2 33 . . 4 1 . 17 . 4 . . 13 3 Haulers Intercepted . | . . . . . . . . . . . . . . . . . . . . . . . . Recyclers Shooed 3 | . . . . . 1 . . . . . . . . . . . 1 . . . . 1 . Parts Field Recycled . | . . . . . . . . . . . . . . . . . . . . . . . . Retrieved Matter . | . . . . . . . . . . . . . . . . . . . . . . . . Parts Self-Destructed 43 | . . . . . . . . . . . 29 . 10 . 1 . . . 3 . . . . Prevented 9 | . . . . . . . . . . 3 6 . . . . . . . . . . . . Kills | -11 -10 -10 -10 -9 -8 -8 -8 -7 -6 -6 -6 -6 -5 -5 -5 -5 -4 -4 -4 -4 -3 -3 -3 ------- Run | Jun Mat Min Exi Min Mat Gar Mat Fac Fac Low Low Dat Pro Fac Upp Upp Fac Upp Upp War Pro Res Tes Combat Hostiles Destroyed 60 | . 2 . . 3 3 16 7 6 . 1 10 . . . . . 8 . 1 . . 3 . Guns 21 | . 2 . . . . 8 . 1 . 1 5 . . . . . 3 . 1 . . . . Cannons 32 | . . . . 2 3 4 7 5 . . 3 . . . . . 5 . . . . 3 . AOE 1 | . . . . . . 1 . . . . . . . . . . . . . . . . . Classes Destroyed 11 | . 1 . . 1 4 1 2 1 . . 1 . . . . . . . . . . . . Builder 2 | . . . . . 1 . . . . . . . . . . . . . . . . 1 . Recycler 2 | . . . . . . . 1 . . . . . . 1 . . . . . . . . . Operator 2 | . . . . . . . 1 . . . . . . . . . . . . . . . 1 Watcher 6 | . . . . . 2 . 3 . . . . . . . . . . . . . . 1 . Swarmer 20 | . . . . . 2 8 . . . . 4 . . . . . 4 . . . . 2 . Grunt 17 | . 2 . . 2 . 5 4 2 . 1 1 . . . . . . . . . . . . Brawler 2 | . . . . 1 . . . 1 . . . . . . . . . . . . . . . Sentry 9 | . . . . . 1 2 2 1 . . 1 . . . . . 1 . 1 . . . . Specialist 2 | . . . . . . . . . . . 2 . . . . . . . . . . . . Hunter 4 | . . . . . . 1 1 . . . 2 . . . . . . . . . . . . Programmer 6 | . . . . . . . . 2 . . . . . . . . 3 . . . . 1 . Best Kill Streak 5 | . 1 . . 2 5 4 3 2 . 1 3 . . 1 . . 4 . 1 . . 3 1 Combat Bots Only 4 | . 1 . . 2 2 4 3 2 . 1 3 . . . . . 4 . 1 . . 2 . Max Kills in Single Turn 1 | . 1 . . 1 1 1 1 1 . 1 1 . . 1 . . 1 . 1 . . 1 1 Gunslinging . | . . . . . . . . . . . . . . . . . . . . . . . . Exploded 1 | . . . . . . 1 . . . . . . . . . . . . . . . . . Melee . | . . . . . . . . . . . . . . . . . . . . . . . . Uniques/NPCs Destroyed . | . . . . . . . . . . . . . . . . . . . . . . . . Combat | -11 -10 -10 -10 -9 -8 -8 -8 -7 -6 -6 -6 -6 -5 -5 -5 -5 -4 -4 -4 -4 -3 -3 -3 -------- Run | Jun Mat Min Exi Min Mat Gar Mat Fac Fac Low Low Dat Pro Fac Upp Upp Fac Upp Upp War Pro Res Tes Damage Taken 9614 | . 53 . . 45 49 1433 396 418 48 18 1512 . 235 1352 . . 459 . 69 247 779 1077 1424 Core 3407 | . . . . 12 . 409 101 79 12 10 450 . 43 465 . . 96 . 36 51 341 319 983 Absorbed by Shields 620 | . . . . . . . . . 41 11 300 . . . . . . . 26 . . 55 187 Redirected to Shielding 57 | . . . . . 5 46 . 6 . . . . . . . . . . . . . . . Regen/Repaired (Parts) 204 | . . . . . . . . 78 126 . . . . . . . . . . . . . . Core Remaining (%) 62 | 100 . . . 95 . . 7 88 . . . . 39 . . 53 . . . . 54 . . Volleys Fired 390 | . 11 . . 7 20 121 55 31 3 10 44 . 11 10 4 . 29 . 5 1 . 17 11 Largest 2 | . 2 . . 2 2 2 1 2 1 2 2 . 2 1 1 . 2 . 2 1 . 2 1 Hottest 178 | . 40 . . 112 112 89 98 167 98 178 126 . 178 57 . . 162 . 114 24 . 122 113 Shots Fired 448 | . 22 . . 8 23 121 59 45 3 14 51 . 12 10 4 . 40 . 6 1 . 18 11 Gun 157 | . 22 . . . . 51 . 16 . 7 32 . 11 . . . 12 . 5 1 . . . Cannon 226 | . . . . 8 16 54 46 29 3 7 13 . 1 3 . . 16 . 1 . . 18 11 Launcher 9 | . . . . . 7 1 . . . . . . . 1 . . . . . . . . . Special 56 | . . . . . . 15 13 . . . 6 . . 6 4 . 12 . . . . . . Kinetic 96 | . 22 . . . . 26 . . . . 25 . . 3 . . 2 . . . . 18 . Thermal 198 | . . . . . . 19 46 45 3 14 15 . 12 . . . 26 . 6 1 . . 11 Explosive 8 | . . . . . 7 1 . . . . . . . . . . . . . . . . . Electromagnetic 90 | . . . . 8 16 60 . . . . 5 . . 1 . . . . . . . . . Robot Hit Streak 18 | . 3 . . 8 12 18 12 7 8 10 8 . 4 3 5 . 14 . 5 . . 5 7 Robot Miss Streak 6 | . 3 . . . 2 3 2 2 . 1 4 . 3 1 . . 2 . 1 1 . 6 . Penetration Max 1 | . . . . . . . . . . . . . . . . . 1 . . . . 1 . Secondary Targets . | . . . . . . . . . . . . . . . . . . . . . . . . Shots Hit Robots 266 | . 10 . . 7 9 70 39 33 3 10 34 . 6 6 3 . 20 . 5 . . 9 2 Core Hits 114 | . 6 . . 3 9 24 13 12 1 5 13 . 1 2 . . 12 . 3 . . 8 2 Critical Kills 5 | . . . . . . 1 . . . . . . . . . . 2 . . . . 2 . Critical Parts Destroyed 6 | . . . . . . . . . . . 1 . . . . . 1 . . . . 4 . Critical Strikes 20 | . . . . . 1 4 . . . . 1 . . . . . 4 . 1 . . 9 . Burn 4 | . . . . . . 2 . . . . . . . . . . 1 . 1 . . . . Destroy 11 | . . . . . . 1 . . . . 1 . . . . . 3 . . . . 6 . Blast 3 | . . . . . . . . . . . . . . . . . . . . . . 3 . Corrupt 2 | . . . . . 1 1 . . . . . . . . . . . . . . . . . Melee Attacks . | . . . . . . . . . . . . . . . . . . . . . . . . Impact . | . . . . . . . . . . . . . . . . . . . . . . . . Slashing . | . . . . . . . . . . . . . . . . . . . . . . . . Piercing . | . . . . . . . . . . . . . . . . . . . . . . . . Sneak Attacks . | . . . . . . . . . . . . . . . . . . . . . . . . Combat Hostiles . | . . . . . . . . . . . . . . . . . . . . . . . . Follow-up Attacks . | . . . . . . . . . . . . . . . . . . . . . . . . Damage Inflicted 6169 | . 80 . . 143 381 1082 898 1007 97 271 694 . 151 71 . . 755 . 133 . . 316 90 Guns 1492 | . 80 . . . . 310 . 208 . 142 323 . 117 . . . 215 . 97 . . . . Cannons 4352 | . . . . 143 264 659 898 799 97 129 371 . 34 71 . . 457 . 36 . . 316 78 Explosions 290 | . . . . . 117 90 . . . . . . . . . . 83 . . . . . . Melee . | . . . . . . . . . . . . . . . . . . . . . . . . Ramming 35 | . . . . . . 23 . . . . . . . . . . . . . . . . 12 Kinetic 954 | . 80 . . . . 165 . . . . 264 . . 71 . . 58 . . . . 316 . Thermal 3965 | . . . . . 117 145 898 1007 97 271 371 . 151 . . . 697 . 133 . . . 78 Explosive 90 | . . . . . . 90 . . . . . . . . . . . . . . . . . Electromagnetic 1125 | . . . . 143 264 659 . . . . 59 . . . . . . . . . . . . Impact . | . . . . . . . . . . . . . . . . . . . . . . . . Slashing . | . . . . . . . . . . . . . . . . . . . . . . . . Piercing . | . . . . . . . . . . . . . . . . . . . . . . . . Highest Corruption 8 | . . . . . . 5 5 5 . . . . . 1 1 1 2 2 . . . 4 8 Average Corruption 3 | . . . . . . 3 5 4 . . . . . 1 1 1 1 1 . . . 3 5 Corruption Purged 2 | . . . . . . . . . . . . . . . . . . 2 . . . . . Corruption Blocked . | . . . . . . . . . . . . . . . . . . . . . . . . Effects 95 | . . . . . . 44 25 7 . . . . . . 1 1 2 1 . . . 9 5 Message Errors 19 | . . . . . . 7 7 2 . . . . . . . . . . . . . 2 1 Matter Fused 24 | . . . . . . 12 3 . . . . . . . 1 . 1 . . . . 3 4 Heat Flow Errors 9 | . . . . . . 2 3 2 . . . . . . . . 1 . . . . 1 . Energy Discharges 13 | . . . . . . 8 1 1 . . . . . . . 1 . . . . . 2 . Parts Rejected 2 | . . . . . . . 2 . . . . . . . . . . . . . . . . Data Loss (minor) 14 | . . . . . . 8 3 1 . . . . . . . . . 1 . . . 1 . Data Loss (major) 4 | . . . . . . 3 1 . . . . . . . . . . . . . . . . Misfires 5 | . . . . . . 1 4 . . . . . . . . . . . . . . . . Alerts 2 | . . . . . . 1 1 . . . . . . . . . . . . . . . . Weapon Failures 3 | . . . . . . 2 . 1 . . . . . . . . . . . . . . . Overload Shots 2 | . . . . . . . . . . . . . . . . . 2 . . . . . . Effects 1 | . . . . . . . . . . . . . . . . . 1 . . . . . . Short Circuit 1 | . . . . . . . . . . . . . . . . . 1 . . . . . . Overflow Damage 91 | . . . . . 5 . 37 43 . . . . . . . . 6 . . . . . . Projectiles 58 | . . . . . . . 9 43 . . . . . . . . 6 . . . . . . Explosions 33 | . . . . . 5 . 28 . . . . . . . . . . . . . . . . Melee . | . . . . . . . . . . . . . . . . . . . . . . . . Knockbacks 2 | . . . . . . . . . . . . . . . . . . . . . . 2 . Impact . | . . . . . . . . . . . . . . . . . . . . . . . . Kinetic 2 | . . . . . . . . . . . . . . . . . . . . . . 2 . Secondary . | . . . . . . . . . . . . . . . . . . . . . . . . Self-Inflicted Damage 124 | . . . . . . 11 108 . . . . . . . . . . . . . . . 5 Shots 1 | . . . . . . . 1 . . . . . . . . . . . . . . . . Rammed 5 | . . . . . . 2 . . . . . . . . . . . . . . . . 3 Targets Rammed 5 | . . . . . . 2 . . . . . . . . . . . . . . . . 3 Kicked . | . . . . . . . . . . . . . . . . . . . . . . . . Crushed . | . . . . . . . . . . . . . . . . . . . . . . . . Highest Temperature 428 | . 12 . . 67 97 260 350 428 21 168 159 . 16 . . . 85 . 69 374 3 59 298 Average Temperature 80 | . 7 . . 25 37 36 106 129 12 60 55 . 8 . . . 46 . 35 189 3 36 108 Received Heat Transfer 1177 | . 30 . . 12 18 414 117 141 6 4 72 . 12 27 . . 36 . 13 9 9 33 224 Effects 4 | . . . . . . . 1 3 . . . . . . . . . . . . . . . Shutdowns 2 | . . . . . . . 1 1 . . . . . . . . . . . . . . . Interference 2 | . . . . . . . . 2 . . . . . . . . . . . . . . . Siege Activations . | . . . . . . . . . . . . . . . . . . . . . . . . Robots Corrupted 4 | . . . . 1 . 3 . . . . . . . . . . . . . . . . . Combat Hostiles 4 | . . . . 1 . 3 . . . . . . . . . . . . . . . . . Parts Fried 8 | . . . . . 1 7 . . . . . . . . . . . . . . . . . Impact Corruptions . | . . . . . . . . . . . . . . . . . . . . . . . . Robots Melted . | . . . . . . . . . . . . . . . . . . . . . . . . Combat Hostiles . | . . . . . . . . . . . . . . . . . . . . . . . . Parts Melted 8 | . . . . . . 1 1 3 . . . . . . . . 2 . 1 . . . . Heat Transferred 5719 | . . . . . 100 438 1350 1520 150 422 550 . 235 . . . 580 . 300 . . . 74 Parts Sabotaged . | . . . . . . . . . . . . . . . . . . . . . . . . Parts Stolen 1 | . . . . . . . . . . 1 . . . . . . . . . . . . . Parts Stripped . | . . . . . . . . . . . . . . . . . . . . . . . . Power Chain Reactions 2 | . . . . . 1 . . . . . . . . . . . 1 . . . . . . Missiles Intercepted . | . . . . . . . . . . . . . . . . . . . . . . . . Alert | -11 -10 -10 -10 -9 -8 -8 -8 -7 -6 -6 -6 -6 -5 -5 -5 -5 -4 -4 -4 -4 -3 -3 -3 ------- Run | Jun Mat Min Exi Min Mat Gar Mat Fac Fac Low Low Dat Pro Fac Upp Upp Fac Upp Upp War Pro Res Tes Peak Influence 2069 | . 69 26 . 85 209 888 598 395 274 . . . . 480 . . 232 . . . . 120 2069 Initial 459 | . . 26 . . 33 5 429 271 142 . . . . 459 . . 68 . . . . . 50 Average 324 | . 30 26 . 71 120 352 475 307 197 . . . . 358 . . 89 . . . . 39 1695 Maximum Alert Level 5 | . . . . . 1 3 2 1 1 . . . . 2 . . 1 . . . . . 5 Low Security (%) 46 | 100 100 100 . 100 93 39 . 8 54 . . . . 21 . . 96 . . . . 100 . Level 1 17 | . . . . . 6 17 1 91 45 . . . . 24 . . 3 . . . . . . Level 2 28 | . . . . . . 28 98 . . . . . . 53 . . . . . . . . . Level 3 3 | . . . . . . 13 . . . . . . . . . . . . . . . . . Level 4 . | . . . . . . . . . . . . . . . . . . . . . . . . Level 5 . | . . . . . . . . . . . . . . . . . . . . . . . . High Security . | . . . . . . . . . . . . . . . . . . . . . . . . Max Security 3 | . . . . . . . . . . . . . . . . . . . . . . . 99 Squads Dispatched 31 | . 1 . . 1 . 1 3 1 1 . 1 . . 2 . . 2 . . . . 5 13 Investigation 6 | . . . . . . . 2 . . . . . . 1 . . . . . . . 3 . Extermination 4 | . . . . . . . . 1 . . . . . 1 . . 2 . . . . . . Reinforcement 5 | . 1 . . . . . 1 . 1 . . . . . . . . . . . . 2 . Assault 16 | . . . . 1 . 1 . . . . 1 . . . . . . . . . . . 13 Garrison . | . . . . . . . . . . . . . . . . . . . . . . . . Intercept . | . . . . . . . . . . . . . . . . . . . . . . . . Searches Triggered 1 | . . . . . . . . . . . . . . 1 . . . . . . . . . Data Miner Redirects 1 | . . . . . . . . . . . . . . . . . . . . . . 1 . Construction Impeded . | . . . . . . . . . . . . . . . . . . . . . . . . Haulers Reinforced 1 | . . . . . . . . . 1 . . . . . . . . . . . . . . Active Scanning Responses . | . . . . . . . . . . . . . . . . . . . . . . . . Cargo Convoy Interrupts . | . . . . . . . . . . . . . . . . . . . . . . . . Stealth | -11 -10 -10 -10 -9 -8 -8 -8 -7 -6 -6 -6 -6 -5 -5 -5 -5 -4 -4 -4 -4 -3 -3 -3 --------- Run | Jun Mat Min Exi Min Mat Gar Mat Fac Fac Low Low Dat Pro Fac Upp Upp Fac Upp Upp War Pro Res Tes Distress Signals 5 | . 1 . . . 1 . . . . . . . . . . . 1 . . . . 2 . Communications Jammed 2 | . . . . . . . . . . . . . . . . . 2 . . . . . . Distress Signals 2 | . . . . . . . . . . . . . . . . . 2 . . . . . . Times Spotted 258 | . 5 . . 2 9 35 21 9 2 3 20 . 8 23 . 2 16 . 1 4 7 19 72 Peak Tracking Total 36 | . 3 . . 2 5 6 6 3 4 2 9 . 4 17 . 3 4 . 1 3 6 9 36 Tactical Retreats 24 | . . . . . 1 3 2 1 . . 1 . 1 3 . . 1 . . 1 1 5 4 Traps | -11 -10 -10 -10 -9 -8 -8 -8 -7 -6 -6 -6 -6 -5 -5 -5 -5 -4 -4 -4 -4 -3 -3 -3 ------- Run | Jun Mat Min Exi Min Mat Gar Mat Fac Fac Low Low Dat Pro Fac Upp Upp Fac Upp Upp War Pro Res Tes Traps Triggered 12 | . . . . . . 5 2 1 . . . . . . . . . . . 1 . 2 1 Indirectly . | . . . . . . . . . . . . . . . . . . . . . . . . Trap Hack Attempts . | . . . . . . . . . . . . . . . . . . . . . . . . Triggered . | . . . . . . . . . . . . . . . . . . . . . . . . Disarmed 6 | . . . . . 6 . . . . . . . . . . . . . . . . . . Reprogrammed 4 | . . . . . . . . . . . . . . . . . . . . . . 4 . Reused 4 | . . . . . . 2 . . . . . . . . . . . . . . . 2 . Traps Extracted . | . . . . . . . . . . . . . . . . . . . . . . . . Installed 4 | . . . . . . 4 . . . . . . . . . . . . . . . . . Triggered 9 | . . . . . . 2 . . . 1 2 . . . . 2 . . . . . 2 . Most Traps Carried 3 | . . . . . . 3 . . . . . . . . . . . . . . . . . Machines | -11 -10 -10 -10 -9 -8 -8 -8 -7 -6 -6 -6 -6 -5 -5 -5 -5 -4 -4 -4 -4 -3 -3 -3 ---------- Run | Jun Mat Min Exi Min Mat Gar Mat Fac Fac Low Low Dat Pro Fac Upp Upp Fac Upp Upp War Pro Res Tes Machines Disabled 14 | . . . . . 1 4 5 . . . 1 . . 1 . . . . . . . . 2 Max in Single Turn 2 | . . . . . 1 1 2 . . . 1 . . 1 . . . . . . . . 1 Garrison Access 1 | . . . . . . . . . . . . . . . . . 1 . . . . . . Garrison Relay 4 | . . . . . . 4 . . . . . . . . . . . . . . . . . Machines Repaired . | . . . . . . . . . . . . . . . . . . . . . . . . Machines Sabotaged . | . . . . . . . . . . . . . . . . . . . . . . . . Overloaded Fab Kills . | . . . . . . . . . . . . . . . . . . . . . . . . Hacking | -11 -10 -10 -10 -9 -8 -8 -8 -7 -6 -6 -6 -6 -5 -5 -5 -5 -4 -4 -4 -4 -3 -3 -3 --------- Run | Jun Mat Min Exi Min Mat Gar Mat Fac Fac Low Low Dat Pro Fac Upp Upp Fac Upp Upp War Pro Res Tes Machines Accessed 61 | . 1 . 5 . 6 2 9 6 4 . . 4 . 6 1 . 8 . 1 . . 8 . Terminals 34 | . 1 . . . 4 2 6 3 1 . . . . 3 . . 7 . 1 . . 6 . Fabricators 3 | . . . . . . . . . . . . . . 1 . . . . . . . 2 . Repair Stations 6 | . . . . . . . 1 2 2 . . . . 1 . . . . . . . . . Recycling Units 2 | . . . . . 1 . 1 . . . . . . . . . . . . . . . . Scanalyzers 4 | . . . . . . . 1 1 1 . . . . 1 . . . . . . . . . Garrison Access 2 | . . . . . 1 . . . . . . . . . . . 1 . . . . . . Total Hacks 242 | . 2 . 50 . 12 3 42 19 11 . . 29 . 25 1 . 23 . 1 . . 24 . Successful 163 | . 1 . 50 . 6 2 29 9 5 . . 29 . 10 1 . 8 . 1 . . 12 . Failed 78 | . 1 . . . 6 1 12 10 6 . . . . 15 . . 15 . . . . 12 . Catastrophic 4 | . . . . . 1 . 1 1 . . . . . . . . . . . . . 1 . Database Lockouts 1 | . . . . . . . 1 . . . . . . . . . . . . . . . . Manual 29 | . . . 1 . . . 8 1 . . 1 . . 6 . . 5 . . . . 7 . Terminals 104 | . 2 . . . 9 3 24 10 4 . . . . 12 . . 20 . 1 . . 19 . Fabricators 9 | . . . . . . . . . . . . . . 4 . . . . . . . 5 . Repair Stations 20 | . . . . . . . 5 7 6 . . . . 2 . . . . . . . . . Recycling Units 3 | . . . . . 2 . 1 . . . . . . . . . . . . . . . . Scanalyzers 22 | . . . . . . . 12 2 1 . . . . 7 . . . . . . . . . Garrison Access 4 | . . . . . 1 . . . . . . . . . . . 3 . . . . . . Terminal Hacks 127 | . 1 . 50 . 5 2 14 3 3 . . 29 . 4 1 . 6 . 1 . . 8 . Record 66 | . . . 49 . . . 4 . . . . 11 . . . . 1 . 1 . . . . Part Schematic 12 | . . . . . . . . . . . . 10 . . . . 1 . . . . 1 . Robot Schematic 5 | . . . . . . . . . . . . 5 . . . . . . . . . . . Prototype ID Bank 5 | . . . . . . . 2 . . . . 3 . . . . . . . . . . . Open Door 1 | . . . . . . . . . . . . . . . 1 . . . . . . . . Open DSF 2 | . . . . . . . . 1 . . . . . 1 . . . . . . . . . Level Access Points 2 | . . . . . . . . 1 . . . . . 1 . . . . . . . . . Branch Access Points 5 | . . . . . . . 1 . 1 . . . . 1 . . 1 . . . . 1 . Emergency Access Points 5 | . . . . . 1 1 2 . 1 . . . . . . . . . . . . . . Terminal Index 4 | . . . . . . . . 1 . . . . . 1 . . 1 . . . . 1 . Fabricator Index 1 | . . . . . . . . . 1 . . . . . . . . . . . . . . Alert Level 2 | . . . . . . . 1 . . . . . . . . . 1 . . . . . . Unreport Threat 1 | . . . . . . . . . . . . . . . . . . . . . . 1 . Locate Traps 1 | . 1 . . . . . . . . . . . . . . . . . . . . . . Disarm Traps 1 | . . . . . 1 . . . . . . . . . . . . . . . . . . Reprogram Traps 1 | . . . . . . . . . . . . . . . . . . . . . . 1 . Dispatch Records 1 | . . . . . 1 . . . . . . . . . . . . . . . . . . Assault Status 1 | . . . . . . . 1 . . . . . . . . . . . . . . . . Recall Investigation 1 | . . . . . . . . . . . . . . . . . . . . . . 1 . Hauler Manifests 1 | . . . . . 1 . . . . . . . . . . . . . . . . . . Registered Components 1 | . . . . . . . 1 . . . . . . . . . . . . . . . . Zone Layout 6 | . . . . . 1 . 2 . . . . . . . . . 1 . . . . 2 . Patrol Navigation 1 | . . . . . . 1 . . . . . . . . . . . . . . . . . EX-Prototype ID Bank 1 | . . . 1 . . . . . . . . . . . . . . . . . . . . Fabricator Hacks 6 | . . . . . . . . . . . . . . 2 . . . . . . . 4 . Load Schematic 3 | . . . . . . . . . . . . . . 1 . . . . . . . 2 . Build 3 | . . . . . . . . . . . . . . 1 . . . . . . . 2 . Repair Station Hacks 12 | . . . . . . . 3 6 2 . . . . 1 . . . . . . . . . Scan Component 3 | . . . . . . . . 2 1 . . . . . . . . . . . . . . Repair 3 | . . . . . . . . 2 1 . . . . . . . . . . . . . . Refit 6 | . . . . . . . 3 2 . . . . . 1 . . . . . . . . . Recycling Unit Hacks 1 | . . . . . . . 1 . . . . . . . . . . . . . . . . Retrieve Components 1 | . . . . . . . 1 . . . . . . . . . . . . . . . . Scanalyzer 14 | . . . . . . . 11 . . . . . . 3 . . . . . . . . . Insert Component 6 | . . . . . . . 4 . . . . . . 2 . . . . . . . . . Analyze 8 | . . . . . . . 7 . . . . . . 1 . . . . . . . . . Garrison Access Hacks 2 | . . . . . 1 . . . . . . . . . . . 1 . . . . . . Unlock Access 1 | . . . . . 1 . . . . . . . . . . . . . . . . . . Seal Access 1 | . . . . . . . . . . . . . . . . . 1 . . . . . . Unauthorized Hacks 1 | . . . . . . . . . . . . . . . . . 1 . . . . . . Terminals 1 | . . . . . . . . . . . . . . . . . 1 . . . . . . Assimilate 1 | . . . . . . . . . . . . . . . . . 1 . . . . . . Fabricators . | . . . . . . . . . . . . . . . . . . . . . . . . Repair Stations . | . . . . . . . . . . . . . . . . . . . . . . . . Recycling Units . | . . . . . . . . . . . . . . . . . . . . . . . . Scanalyzers . | . . . . . . . . . . . . . . . . . . . . . . . . Garrison Access . | . . . . . . . . . . . . . . . . . . . . . . . . Data Cores Recovered . | . . . . . . . . . . . . . . . . . . . . . . . . Used . | . . . . . . . . . . . . . . . . . . . . . . . . Hacking Detections 41 | . 1 . . . 5 . 7 3 4 . . . . 5 . . 8 . . . . 8 . Full Trace Events 4 | . . . . . . . . . . . . . . 1 . . . . . . . 3 . Feedback Events . | . . . . . . . . . . . . . . . . . . . . . . . . Feedback Blocked . | . . . . . . . . . . . . . . . . . . . . . . . . Robot Schematics Acquired 5 | . . . . . . . . . . . . 5 . . . . . . . . . . . Robots Built 2 | . . . . . . . . . . . . . . . . . . . . . . 2 . Authchips . | . . . . . . . . . . . . . . . . . . . . . . . . Time 190 | . . . . . . . . . . . . . . 84 . . . . . . . 106 . Total Robot Build Rating 10 | . . . . . . . . . . . . . . . . . . . . . . 10 . Part Schematics Acquired 17 | . . . . . . . 4 . . . . 10 . 1 . . 1 . . . . 1 . Parts Built . | . . . . . . . . . . . . . . . . . . . . . . . . Authchips . | . . . . . . . . . . . . . . . . . . . . . . . . Time . | . . . . . . . . . . . . . . . . . . . . . . . . Total Part Build Rating . | . . . . . . . . . . . . . . . . . . . . . . . . Parts Repaired 3 | . . . . . . . . 2 1 . . . . . . . . . . . . . . Time 94 | . . . . . . . . 66 28 . . . . . . . . . . . . . . Parts Recycled . | . . . . . . . . . . . . . . . . . . . . . . . . Recycled Matter . | . . . . . . . . . . . . . . . . . . . . . . . . Retrieved Matter . | . . . . . . . . . . . . . . . . . . . . . . . . Retrieved Components . | . . . . . . . . . . . . . . . . . . . . . . . . Parts Scanalyzed 6 | . . . . . . . 4 . . . . . . 2 . . . . . . . . . Part Schematics Acquired 5 | . . . . . . . 4 . . . . . . 1 . . . . . . . . . Parts Damaged . | . . . . . . . . . . . . . . . . . . . . . . . . Bothacking | -11 -10 -10 -10 -9 -8 -8 -8 -7 -6 -6 -6 -6 -5 -5 -5 -5 -4 -4 -4 -4 -3 -3 -3 ------------ Run | Jun Mat Min Exi Min Mat Gar Mat Fac Fac Low Low Dat Pro Fac Upp Upp Fac Upp Upp War Pro Res Tes Used RIF Installer 1 | . . . . . . 1 . . . . . . . . . . . . . . . . . Robots Hacked 13 | . . . . . . 3 7 . . . . . . 3 . . . . . . . . . Non-combat 10 | . . . . . . . 7 . . . . . . 3 . . . . . . . . . Combat 3 | . . . . . . 3 . . . . . . . . . . . . . . . . . Robot Hacks Applied 17 | . . . . . . 3 10 . . . . . . 4 . . . . . . . . . no_distress 3 | . . . . . . . . . . . . . . 3 . . . . . . . . . start_evac 2 | . . . . . . . 2 . . . . . . . . . . . . . . . . find_chute 1 | . . . . . . . . . . . . . . 1 . . . . . . . . . hold_bot 2 | . . . . . . . 2 . . . . . . . . . . . . . . . . map_walls 1 | . . . . . . . 1 . . . . . . . . . . . . . . . . ignore_parts 1 | . . . . . . . 1 . . . . . . . . . . . . . . . . amplify_resonance 4 | . . . . . . . 4 . . . . . . . . . . . . . . . . streamctrl_high 1 | . . . . . . 1 . . . . . . . . . . . . . . . . . formatsys_high 2 | . . . . . . 2 . . . . . . . . . . . . . . . . . Relay Couplers Released 19 | . . . . . . 15 . . . . . . . . . . . . . . . 4 . Machine Destruction 15 | . . . . . . 15 . . . . . . . . . . . . . . . . . Programmers 4 | . . . . . . . . . . . . . . . . . . . . . . 4 . Attached 4 | . . . . . . 4 . . . . . . . . . . . . . . . . . Fabnet Peak Effective % . | . . . . . . . . . . . . . . . . . . . . . . . . Robots Rewired 4 | . . . . . . 1 . . 3 . . . . . . . . . . . . . . Allies Hacked . | . . . . . . . . . . . . . . . . . . . . . . . . Hacks Repelled . | . . . . . . . . . . . . . . . . . . . . . . . . Allies | -11 -10 -10 -10 -9 -8 -8 -8 -7 -6 -6 -6 -6 -5 -5 -5 -5 -4 -4 -4 -4 -3 -3 -3 -------- Run | Jun Mat Min Exi Min Mat Gar Mat Fac Fac Low Low Dat Pro Fac Upp Upp Fac Upp Upp War Pro Res Tes Total Allies 17 | . . . . 1 . 8 . . 3 . 1 . 1 . . . 1 . . . . 2 . Largest Group 3 | . . . . 1 1 3 1 . 3 2 2 . 1 . . . 1 . . . . 2 . Highest-Rated Group 101 | . . . . 31 31 52 15 . 101 67 84 . 96 . . . 26 . . . . 28 . Highest-Rated Ally 96 | . . . . 31 31 37 15 . 40 38 46 . 96 . . . 26 . . . . 14 . Total Orders 4 | . . . . . . 4 . . . . . . . . . . . . . . . . . STAY 2 | . . . . . . 2 . . . . . . . . . . . . . . . . . FOLLOW 1 | . . . . . . 1 . . . . . . . . . . . . . . . . . AID 1 | . . . . . . 1 . . . . . . . . . . . . . . . . . Ally Attacks 78 | . . . . . 4 30 . . 10 2 5 . 23 . . . . . . . . 4 . Total Damage 1845 | . . . . . 85 701 . . 331 57 87 . 584 . . . . . . . . . . Kills 21 | . . . . . 2 8 . . 6 1 1 . 3 . . . . . . . . . . Allies Corrupted . | . . . . . . . . . . . . . . . . . . . . . . . . Allies Melted 1 | . . . . . . . . . . . . . 1 . . . . . . . . . . Field Lobotomies 5 | . . . . . . 4 . . . . 1 . . . . . . . . . . . . Intel | -11 -10 -10 -10 -9 -8 -8 -8 -7 -6 -6 -6 -6 -5 -5 -5 -5 -4 -4 -4 -4 -3 -3 -3 ------- Run | Jun Mat Min Exi Min Mat Gar Mat Fac Fac Low Low Dat Pro Fac Upp Upp Fac Upp Upp War Pro Res Tes Robot Analysis Total . | . . . . . . . . . . . . . . . . . . . . . . . . Derelict Logs Recovered 10 | . . . . . . . . . . 1 2 . 1 . 2 1 . 1 2 . . . . Drone Launches . | . . . . . . . . . . . . . . . . . . . . . . . . Drone Recoveries . | . . . . . . . . . . . . . . . . . . . . . . . . Exploration | -11 -10 -10 -10 -9 -8 -8 -8 -7 -6 -6 -6 -6 -5 -5 -5 -5 -4 -4 -4 -4 -3 -3 -3 ------------- Run | Jun Mat Min Exi Min Mat Gar Mat Fac Fac Low Low Dat Pro Fac Upp Upp Fac Upp Upp War Pro Res Tes Turns Passed 10087 | 44 155 16 301 114 404 2076 1110 564 327 293 588 32 301 556 328 107 867 378 333 244 181 524 244 Spaces Moved 12274 | 45 149 12 372 111 422 2106 1158 485 416 442 864 81 573 740 600 243 787 582 495 192 299 682 418 Core 437 | 2 . . . . . 30 . . . . 8 . 133 78 45 . . . . . . 9 132 Treads . | . . . . . . . . . . . . . . . . . . . . . . . . Legs 28 | . . . . . . . . . . . 28 . . . . . . . . . . . . Wheels 849 | 43 149 12 372 111 162 . . . . . . . . . . . . . . . . . . Hover 6782 | . . . . . 260 1804 947 485 416 442 101 . . 9 65 . 715 582 495 192 269 . . Flight 4178 | . . . . . . 272 211 . . . 727 81 440 653 490 243 72 . . . 30 673 286 Fastest Speed 32 | 50 80 80 80 80 70 34 34 48 56 56 39 39 35 37 44 44 40 62 62 62 32 32 35 Average Speed 55 | 78 80 80 80 80 73 56 51 60 58 56 44 39 44 44 48 44 60 62 62 104 59 39 43 Slowest Speed 200 | 80 80 80 80 80 80 130 136 136 60 56 150 39 50 160 80 44 132 62 118 118 70 200 50 Overloaded Moves 33 | . . . . . . . . . . . . . . . . . . . . . 28 5 . Propulsion Burnouts . | . . . . . . . . . . . . . . . . . . . . . . . . Robots Hopped 49 | . . . . . . . . . . . . . . 14 . 1 . . . . 2 20 12 Cave-ins Triggered . | . . . . . . . . . . . . . . . . . . . . . . . . Exploration Rate (%) 44 | 3 25 6 88 33 34 92 62 14 12 52 64 69 68 19 81 26 24 84 82 26 61 19 35 Regions Visited 23 Branch Regions 14 Pre-discovered Areas 6 | . . . 1 . . . . . . . . 1 1 . 2 . . . 1 . . . . Known Exits Taken 9 | . . . . . 1 . . 1 1 . 1 . . 1 . 1 1 . 1 . . 1 . Unknown Exits Taken 13 | 1 1 1 1 1 . . 1 . . 1 . 1 1 . 1 . . 1 . 1 1 . . Scrap Searched 17 | . . . . 1 . . . . . 1 3 . 3 . 3 . . 2 3 . 1 . . Spaces Dug 59 | . . . . . 50 . 8 . . . . . . . . . . . . . . . 1 Terrain Destroyed 146 | . . . . . 76 6 36 4 . 3 2 . . 2 . . 13 . . . . 2 2 Melee . | . . . . . . . . . . . . . . . . . . . . . . . . Projectile 35 | . . . . . . . 15 4 . 3 2 . . 2 . . 5 . . . . 2 2 AOE 111 | . . . . . 76 6 21 . . . . . . . . . 8 . . . . . . Terrain Rammed . | . . . . . . . . . . . . . . . . . . . . . . . . Walls Destroyed . | . . . . . . . . . . . . . . . . . . . . . . . . Machines Disabled . | . . . . . . . . . . . . . . . . . . . . . . . . Actions | -11 -10 -10 -10 -9 -8 -8 -8 -7 -6 -6 -6 -6 -5 -5 -5 -5 -4 -4 -4 -4 -3 -3 -3 --------- Run | Jun Mat Min Exi Min Mat Gar Mat Fac Fac Low Low Dat Pro Fac Upp Upp Fac Upp Upp War Pro Res Tes Total 15035 | 50 165 18 376 127 491 2877 1628 710 492 473 1008 80 609 949 628 241 1116 599 512 233 301 896 456 Wait 1911 | . 2 7 . 9 34 532 353 160 52 20 41 . 2 170 2 . 272 14 8 40 . 176 17 Move 12167 | 44 148 11 371 110 422 2105 1157 484 415 441 863 80 572 715 599 240 786 581 494 191 295 643 400 Hop 36 | . . . . . . . . . . . . . . 10 . 1 . . . . 1 18 6 Pick Up 58 | 1 2 . 1 1 4 14 5 3 1 . 3 . 6 5 3 . . . 1 . . 6 2 Fast Attach 160 | 5 2 . . . 4 30 19 9 6 . 25 . 4 11 10 . 15 1 2 . 1 12 4 Attach 59 | . . . 2 . 1 7 6 5 3 . 6 . 4 8 2 . 3 1 . . 1 7 3 Detach 50 | . . . . . 1 8 7 3 2 . 6 . 3 5 2 . 5 1 . . 1 4 2 Swap 19 | . . . . . 1 6 3 4 1 1 . . . 1 . . . . 1 1 . . . Drop 126 | . . . 2 . 4 20 23 11 1 1 20 . 7 14 6 . 6 1 1 . 2 6 1 Fire 390 | . 11 . . 7 20 121 55 31 3 10 44 . 11 10 4 . 29 . 5 1 . 17 11 Melee . | . . . . . . . . . . . . . . . . . . . . . . . . Ram 5 | . . . . . . 2 . . . . . . . . . . . . . . . . 3 Kick . | . . . . . . . . . . . . . . . . . . . . . . . . Crush . | . . . . . . . . . . . . . . . . . . . . . . . . Escape Stasis 32 | . . . . . . 18 . . . . . . . . . . . . . . . 7 7 Rewire 18 | . . . . . . 10 . . 8 . . . . . . . . . . . . . . Trap 4 | . . . . . . 4 . . . . . . . . . . . . . . . . . Miscellaneous . | . . . . . . . . . . . . . . . . . . . . . . . . Route ------- -11/Junkyard -10/Materials -10/Mines -10/Exiles -9/Mines -8/Materials (discovered 2 exits: *Fac / Gar) -8/Garrison (discovered 3 exits: *Mat x3) -8/Materials -7/Factory (discovered 6 exits: *Fac x4 / [*Sto] / [*Low]) -6/Factory (discovered 2 exits: *Low x2) -6/Lower Caves -6/Lower Caves (discovered 2 exits: *Fac / *Dat) -6/Data Miner -5/Proximity Caves -5/Factory (discovered 8 exits: Fac x4 / *Upp x2 / Ext x2) -5/Upper Caves -5/Upper Caves -4/Factory (discovered 3 exits: *Res / *Upp x2) -4/Upper Caves -4/Upper Caves -4/Warlord -3/Proximity Caves -3/Research (discovered 3 exits: Arm / *Tes x2) -3/Testing History --------- Turn | Location | Event 8 | -11/Junkyard | Discovered new exit (range 16) 45 | -11/Junkyard | Entered Materials 71 | -10/Materials | Discovered new exit (range 15) 146 | -10/Materials | Met 8R-AWN 200 | -10/Materials | Entered Mines 201 | -10/Mines | Followed 8R-AWN into the Mines 211 | -10/Mines | Discovered new exit (range 5) 216 | -10/Mines | Entered Exiles 237 | -10/Exiles | Welcomed by 8R-AWN 250 | -10/Exiles | Met EX-HEX 274 | -10/Exiles | Met EX-BIN 285 | -10/Exiles | Aligned with FarCom system 286 | -10/Exiles | Given EX-Vault access code 300 | -10/Exiles | Build established: Mutant 317 | -10/Exiles | Opened EX-Vault 321 | -10/Exiles | Found Field Lobotomy Kit 338 | -10/Exiles | Warned to stay clear of 0b10 Research branches 361 | -10/Exiles | Met EX-DEC 368 | -10/Exiles | Learned location of Zion (-7) 401 | -10/Exiles | Visited The Gauntlet 505 | -10/Exiles | Discovered new exit (range 14) 517 | -10/Exiles | Left Exiles lab with Field Lobotomy Kit 517 | -10/Exiles | Entered Mines 621 | -9/Mines | Discovered new exit (range 6) 623 | -9/Mines | Met a Derelict testing a Signal Generator 628 | -9/Mines | Found Signal Generator 631 | -9/Mines | Entered Materials 631 | -8/Materials | Accompanied by 1 ally 631 | -8/Materials | Evolved 4 slots: Propulsion x2, Utility x2 944 | -8/Materials | Discovered new exit (range 11) 1035 | -8/Materials | Identified exit to Garrison 1035 | -8/Materials | Entered Garrison 1054 | -8/Garrison | Triggered checkpoint 1280 | -8/Garrison | Triggered checkpoint 1375 | -8/Garrison | Discovered new exit (range 10) 1622 | -8/Garrison | Triggered checkpoint 1706 | -8/Garrison | Lost 4 parts (1p1u2w) 1803 | -8/Garrison | Assimilated P-60 Hacker with FLK Orb 1805 | -8/Garrison | Garrison Relay disabled 1806 | -8/Garrison | Assimilated P-60 Hacker with FLK Orb 2000 | -8/Garrison | Triggered checkpoint 2111 | -8/Garrison | Build established: Scavenger-Mutant 2232 | -8/Garrison | Assimilated S-10 Pest with FLK Orb 2274 | -8/Garrison | Lost 4 parts (3n1w) 2320 | -8/Garrison | Assimilated Y-45 Defender with FLK Orb 2438 | -8/Garrison | Triggered checkpoint 2493 | -8/Garrison | Discovered new exit (range 11) 2532 | -8/Garrison | Triggered checkpoint 2621 | -8/Garrison | Discovered new exit (range 15) 2646 | -8/Garrison | Triggered checkpoint 2717 | -8/Garrison | Installed Relay Interface Framework 2772 | -8/Garrison | Triggered checkpoint 2782 | -8/Garrison | Core integrity fell below 50% 2823 | -8/Garrison | Lost 5 parts (1p2n1u1w) 2866 | -8/Garrison | Garrison Relay disabled 2893 | -8/Garrison | Garrison Relay disabled 2924 | -8/Garrison | Garrison Relay disabled 3111 | -8/Garrison | Entered Materials 3111 | -8/Materials | Accompanied by 1 ally 3129 | -8/Materials | Build established: Bothacker-Mutant 3299 | -8/Materials | Discovered new exit (range 15) 3525 | -8/Materials | Build established: Hacker-Mutant 3556 | -8/Materials | Central database locked down 3865 | -8/Materials | Core integrity fell below 20% 4221 | -8/Materials | Entered Factory 4221 | -7/Factory | Evolved 2 slots: Utility x2 4226 | -7/Factory | Discovered new exit (range 15) 4301 | -7/Factory | Identified exit to Factory 4339 | -7/Factory | Discovered new exit (range 7) 4349 | -7/Factory | Identified exit to DSF 4378 | -7/Factory | Repaired Mic. Nuclear Core 4623 | -7/Factory | Repaired Gravmag System 4732 | -7/Factory | Lost 3 parts (3n) 4785 | -7/Factory | Entered another Factory area 4785 | -6/Factory | Evolved 2 slots: Utility x2 4830 | -6/Factory | Identified exit to Lower Caves 5071 | -6/Factory | Repaired Adv. Plasma Cannon 5112 | -6/Factory | Entered Lower Caves 5112 | -6/Lower Caves | Accompanied by 2 allies 5123 | -6/Lower Caves | Learned 8 Factory zone layouts 5169 | -6/Lower Caves | Encountered a Warlord checkpoint 5387 | -6/Lower Caves | Discovered new exit (range 7) 5405 | -6/Lower Caves | Entered another Lower Caves area 5405 | -6/Lower Caves | Accompanied by 2 allies 5432 | -6/Lower Caves | Acquired the password to a Derelict Tinkerer's latest research 5438 | -6/Lower Caves | Found Prototype Special Weapon 5438 | -6/Lower Caves | Identified Molecular Deconstructor 5473 | -6/Lower Caves | Caught by Unaware searching for contraband prototypes 5476 | -6/Lower Caves | Caught by Unaware searching for contraband prototypes 5489 | -6/Lower Caves | Assimilated X-72 Disruptor with FLK Orb 5582 | -6/Lower Caves | Lost 5 parts (1p1n2u1w) 5736 | -6/Lower Caves | Learned Factory trap positions 5737 | -6/Lower Caves | Discovered new exit (range 9) 5800 | -6/Lower Caves | Attracted the attention of an 0b10 checkpoint 5823 | -6/Lower Caves | Core integrity fell below 50% 5928 | -6/Lower Caves | Encountered a Warlord checkpoint 5952 | -6/Lower Caves | Identified exit to Data Miner 5978 | -6/Lower Caves | Attracted the attention of an 0b10 outpost 5989 | -6/Lower Caves | Spotted B-75 Beast 5993 | -6/Lower Caves | Entered Data Miner 5993 | -6/Data Miner | Discovered new exit (range 6) 6001 | -6/Data Miner | Met Data Miner 6009 | -6/Data Miner | Learned location of Section 7 (-2) 6009 | -6/Data Miner | Acquired the access code to Warlord's prototype stash 6016 | -6/Data Miner | Received God Mode back door access code from Data Miner 6025 | -6/Data Miner | Entered Proximity Caves 6027 | -5/Proximity Caves | Spotter reported a threat 6028 | -5/Proximity Caves | Spotter reported a threat 6060 | -5/Proximity Caves | Escorted by Enhanced Grunt 6099 | -5/Proximity Caves | Lost 3 parts (2n1w) 6138 | -5/Proximity Caves | Spotted B-75 Beast 6172 | -5/Proximity Caves | Spotter reported a threat 6262 | -5/Proximity Caves | Lost 3 parts (2n1u) 6264 | -5/Proximity Caves | Learned location of Armory (-3) 6322 | -5/Proximity Caves | Discovered new exit (range 7) 6325 | -5/Proximity Caves | Attracted the attention of an 0b10 checkpoint 6326 | -5/Proximity Caves | Entered Factory 6326 | -5/Factory | Evolved 2 slots: Power x1, Weapon x1 6327 | -5/Factory | Identified exit to Factory 6328 | -5/Factory | Loaded intel: 86 trap records 6508 | -5/Factory | Identified exit to DSF 6520 | -5/Factory | Identified exit to Upper Caves 6520 | -5/Factory | Identified exit to Extension 6626 | -5/Factory | Search patrols dispatched 6882 | -5/Factory | Entered Upper Caves 6896 | -5/Upper Caves | Lost 12 parts (1p5n3u3w) 6899 | -5/Upper Caves | Encountered a Warlord checkpoint 7084 | -5/Upper Caves | Learned location of Warlord (-4) 7149 | -5/Upper Caves | Discovered new exit (range 13) 7210 | -5/Upper Caves | Entered another Upper Caves area 7211 | -5/Upper Caves | Discovered exit to Factory (range 13) 7214 | -5/Upper Caves | Encountered a Warlord checkpoint 7317 | -5/Upper Caves | Entered Factory 7317 | -4/Factory | Evolved 2 slots: Utility x2 7844 | -4/Factory | Identified exit to Upper Caves 7996 | -4/Factory | Spotted B-86 Titan 8152 | -4/Factory | Discovered new exit (range 16) 8171 | -4/Factory | Spotted B-86 Titan 8184 | -4/Factory | Entered Upper Caves 8364 | -4/Upper Caves | Learned Research stockpile data 8511 | -4/Upper Caves | Discovered new exit (range 5) 8562 | -4/Upper Caves | Entered another Upper Caves area 8563 | -4/Upper Caves | Identified exit to Warlord 8630 | -4/Upper Caves | Learned location of Quarantine (-2) 8795 | -4/Upper Caves | Attracted the attention of an 0b10 checkpoint 8895 | -4/Upper Caves | Entered Warlord 8992 | -4/Warlord | Discovered new exit (range 8) 9058 | -4/Warlord | RIF detected upon attempting to enter Warlord's base 9058 | -4/Warlord | Attacked by Warlord forces 9071 | -4/Warlord | Spotted I6-OS4(B) 9071 | -4/Warlord | Spotted S2-6QJ(B) 9103 | -4/Warlord | Lost 3 parts (1p2u) 9139 | -4/Warlord | Entered Proximity Caves 9146 | -3/Proximity Caves | Spotted B-86 Titan 9316 | -3/Proximity Caves | Discovered new exit (range 12) 9320 | -3/Proximity Caves | Entered Research 9320 | -3/Research | Evolved 2 slots: Utility x2 9321 | -3/Research | Identified exit to Armory 9342 | -3/Research | Lost 8 parts (2p3n1u2w) 9399 | -3/Research | Found Prototype Processor 9399 | -3/Research | Identified Exp. Terrain Scan Processor 9402 | -3/Research | Identified exit to Testing 9437 | -3/Research | Fabricated E-15 Imp? 9812 | -3/Research | Incoming investigation squad redirected 9822 | -3/Research | Found Prototype Hackware 9844 | -3/Research | Entered Testing 9845 | -3/Testing | Maximum security lockdown engaged 9871 | -3/Testing | Lost 5 parts (1n2u2w) 9915 | -3/Testing | Found Portable AFG 9934 | -3/Testing | Found Prototype Ballistic Gun 10006 | -3/Testing | Spotted Striker 10006 | -3/Testing | Spotted Executioner 10012 | -3/Testing | Core integrity fell below 50% 10012 | -3/Testing | Spotted PD-JN1QUJGW9G 10063 | -3/Testing | Identified Hyp. Multirail 10071 | -3/Testing | Lost 8 parts (1p3n4u) 10074 | -3/Testing | Core integrity fell below 20% 10081 | -3/Testing | Spotted Investigator 10085 | -3/Testing | Scanned by Researcher 10088 | -3/Testing | Destroyed by H-77 Assassin with High-powered Shotgun Last Messages --------------- 10085_ Penetrated by Slug. 10085_ Slug penetrates Wall. 10085_ Penetrated by Slug. 10085_ Held in stasis. 10085_ Investigator is analyzing... 10085_ ALERT: Encountered unknown unique technology, formulating response. 10085_ Striker stasis bubble strength at 160. 10086_ S-43 Plague stasis bubble strength at 175. 10086_ Stasis bubble strength at 170. 10086_ B-74 Champion stasis bubble strength at 110. 10086_ Striker stasis bubble strength at 152. 10087_ S-43 Plague stasis bubble strength at 170. 10087_ Stasis bubble strength at 164. 10087_ B-74 Champion stasis bubble strength at 80. 10087_ Striker stasis bubble strength at 144. 10088_ S-43 Plague stasis bubble strength at 165. 10088_ Stasis bubble strength at 158. 10088_ B-74 Champion stasis bubble strength at 50. 10088_ Penetrated by Slug. [Achievement: This Is Interesting...] Map ----- +----------------------------------------------------+ | ?????????????????????????????????????????????????? | | ?????????????????????????????????????????????????? | | ?????????????????????????????????????????????????? | | ?????????????????????????????????????????????????? | | ?????????????????????????????????????????????????? | | ?????????????????????????????????????????????????? | | ?????????????????????????????????????????????????? | | ?????????????????????????????????????????????????? | | ?????????????????????????????????????????????????? | | ?????????????????????????????????????????????????? | | ?????????????????????????????????????????????????? | | ?????????????????????????????????????????????????? | | ?????????????????????????????????????????????????? | | ?????????????????????????????????????????????????? | | ?????????????????????????????????????????????????? | | ?????????????????????????????????????????????????? | | ????????????????????????#+#??????????????????????? | | ?????????????????????x?? ??????????????????????? | | ???????????????????????? ??????????????????????? | | ???????????????????????? ??????????????????????? | | ????????????????????????# #??????????????????????? | | ???????????????#????????# #??????????????????????? | | ?????????????### ######## #??????????????????????? | | ?????????????? m% %glgKp #??????????????????????? | | ??????????????????# gh #??????????????????????? | | ??????????????????#"""bgg@#??????????????????????? | | ????????????C?????#"T cg%##?????????????????????? | | ?????????????????##""" #?????????????????????? | | ?????????????????# i #?????????????????????? | | ?????????????????# K #?????????????????????? | | ?????????????????# ### #?????????????????????? | | ????????????w????# ??#s #?????????????????????? | | ?????????????????# ???# #?????????????????????? | | ?????????????????# ????# #?????????????????????? | | ?????????????????# ????# #?????????????????????? | | ?????????????????# ?????# #?????????????????????? | | ??????????????####+##???# #?????????????????????? | | ??????????????# ???# #?????????????????????? | | ??????????????# ??# #?????????????????????? | | ??????????????# ??# #?????????????????????? | | ??????????????# ?# s#?????????????????????? | | ??????????????+ ?# s#?????????????????????? | | ??????????????# # s#?????????????????????? | | ??????????????# * # #?????????????????????? | | ??????????????# + #?????????????????????? | | ????????????????######### #?????????????????????? | | ????????????????????????# #?????????????????????? | | ????????????????????????# #?????????????????????? | | #???????????????????????# #?????????????????????? | | ???????????????????????# #?????????????????????? | +----------------------------------------------------+ Best States ------------- Heat Dissipation 78 Energy Generation 32 Energy Capacity 540 Matter Stores 300 Matter Capacity 300 Sight Range 16 Terrain Scan Density 1285 Jamming Range 16 Power Amplification 20 Additional Mass Support 9 Base Temperature (-) 200 Armor Coverage 600 Resistance: EM 25 Propulsion Shielding 33 Utility Shielding 66 Weapon Shielding 33 Weapon Cycling 20 Phase Shifting 10 Evasion (%) 63 Targeting Accuracy 13 Target Analysis 8 Core Analysis 6 Energy Filtering 30 Offensive Hacking 45 Defensive Hacking 24 Relay Coupler Types 3 Relay Coupler Value 61 Item Schematics ----------------- Adv. Targeting Computer | -8/Materials | Scanalyzed Adv. Plasma Cannon | -8/Materials | Scanalyzed Adv. Weight Redist. System | -8/Materials | Scanalyzed Antigrav System | -8/Materials | Scanalyzed Combat Drone Bay | -6/Data Miner | Free Lgt. Regenerative Plating | -6/Data Miner | Free Cld. Gravmag System | -6/Data Miner | Free Imp. Matter Compressor | -6/Data Miner | Free Imp. KE Penetrator | -6/Data Miner | Free Imp. Antigrav System | -6/Data Miner | Free Imp. Force Field | -6/Data Miner | Free Hvy. Disruptor Cannon | -6/Data Miner | Free Lgt. Particle Reactor | -6/Data Miner | Free Imp. Arc Projector | -6/Data Miner | Free Enh. Gauss Cannon | -5/Factory | Scanalyzed Quantum Rifle | -4/Factory | Hacked Quantum Reactor | -3/Research | Hacked Robot Schematics ------------------ B-48 Gladiator | -6/Data Miner | Free E-15 Imp | -6/Data Miner | Free P-70 Sage | -6/Data Miner | Free X-67 Chaingunner | -6/Data Miner | Free A-27 Freighter | -6/Data Miner | Free Fabricated ------------ E-15 Imp | x2 | -3/Research Alien Tech Used ----------------- None Achievements -------------- Adventurer Explorer This Is Interesting... Challenges ------------ None Game ------ Seed ClaymoresTargetNanoactuators Manual? 0 Play Time 03:16:20 Cumulative 40.6 hours Start 2023.12.17 @ 06:46:32 End 2023.12.17 @ 10:05:37 Sessions 1 Manual Loads 0 Difficulty Rogue Special Mode None Game No. 24 Rogue 24 Adventurer 0 Explorer 0 Win Type - Total 0 Types 0/0/0/0/0/0/0/0/0 Lore% 25 Gallery% 35 Achievement% 32 Wizard Run 0 Options --------- ASCII 0 Keyboard 1 Movement Arrows Keybinds 0 Fullscreen 1 Font 12/Proggy Map View 83x54 Tactical HUD 1 Map Filters NONE Filters NONE Steam 0 RUN: de873307-e7eb-4b5f-92e7-ab0be92a60fe